bitfinex-derivatives/quotes_ETHF0:USTF0_20251226
["timestamp","ask_amount","ask_price","bid_price","bid_amount"]
[1766788508426,1.46059337,2927.7,2927.0,7.1475]
[1766788508616,1.46059337,2927.7,2927.0,6.7001]
[1766788508816,1.46059337,2927.7,2927.0,6.6004]
[1766788534443,1.46059337,2927.7,2926.8,0.00338975]
[1766788534641,1.46059337,2927.7,2926.9,7.973]
[1766788538750,1.46059337,2927.7,2926.8,0.00338975]
[1766788538952,1.46059337,2927.7,2926.9,7.98]
[1766788540853,1.63151337,2927.7,2926.8,0.00338975]
[1766788541054,0.90623936,2927.5,2926.8,0.00338975]
[1766788541256,0.17092,2927.6,2926.8,0.00338975]
[1766788551275,0.90623936,2927.5,2926.8,0.00338975]
[1766788551773,0.17092,2927.6,2926.8,0.00338975]
[1766788553881,0.90623936,2927.5,2926.8,0.00338975]
[1766788559283,0.17092,2927.6,2926.8,0.00338975]
[1766788562983,0.90623936,2927.5,2926.8,0.00338975]
[1766788578195,0.17092,2927.6,2926.8,0.00338975]
[1766788583301,1.07715936,2927.6,2926.8,0.00338975]
[1766788584299,1.07715936,2927.6,2926.7,8.079]
[1766788587903,0.17092,2927.6,2926.7,8.079]
[1766788624242,2.18970389,2927.7,2926.4,0.0031554]
[1766788624440,0.17093,2927.4,2926.4,7.6241554]
[1766788626243,0.17093,2927.4,2926.4,8.1681554]
[1766788640156,0.17095,2927.1,2926.4,0.0031554]
[1766788644870,1.37941293,2927.1,2926.4,0.0031554]
[1766788645161,0.17095,2927.1,2926.4,0.0031554]
[1766788645461,1.35329992,2927.1,2926.4,0.0031554]
[1766788646061,1.37684913,2927.1,2926.4,0.0031554]
[1766788646660,0.17095,2927.1,2926.4,0.0031554]
[1766788646859,1.37684913,2927.1,2926.4,0.0031554]
[1766788647362,1.35301108,2927.1,2926.4,0.0031554]
[1766788647964,2.25971279,2927.1,2926.4,0.0031554]
[1766788648147,2.25167829,2927.1,2926.4,0.0031554]
[1766788648858,1.07765171,2927.1,2926.4,0.0031554]
[1766788649061,2.25167829,2927.1,2926.4,0.0031554]
[1766788649665,1.34497658,2927.1,2926.4,0.0031554]
[1766788649861,2.25167829,2927.1,2926.4,0.0031554]
[1766788650562,0.17095,2927.1,2926.4,0.0031554]
[1766788650863,1.38604816,2927.1,2926.4,0.0031554]
[1766788651762,1.37956781,2927.1,2926.4,0.0031554]
[1766788652669,0.17095,2927.1,2926.4,0.0031554]
[1766788652867,1.38449779,2927.1,2926.4,0.0031554]
[1766788653166,0.17095,2927.1,2926.4,0.0031554]
[1766788653374,1.38449779,2927.1,2926.4,0.0031554]
[1766788654169,1.38217628,2927.1,2926.4,0.0031554]
[1766788654365,0.17095,2927.1,2926.4,0.0031554]
[1766788654567,1.38217628,2927.1,2926.4,0.0031554]
[1766788654968,0.17095,2927.1,2926.4,0.0031554]
[1766788655270,1.38217628,2927.1,2926.4,0.0031554]
[1766788657660,1.38698268,2927.1,2926.4,0.0031554]
[1766788658170,0.17095,2927.1,2926.4,0.0031554]
[1766788658361,1.38698268,2927.1,2926.4,0.0031554]
[1766788658666,0.17095,2927.1,2926.4,0.0031554]
[1766788658857,1.35706096,2927.1,2926.4,0.0031554]
[1766788660170,0.17095,2927.1,2926.4,0.0031554]
[1766788660369,1.36054649,2927.1,2926.4,0.0031554]
[1766788661070,0.17095,2927.1,2926.4,0.0031554]
[1766788662270,1.36054649,2927.1,2926.4,0.0031554]
[1766788664174,1.38011853,2927.1,2926.4,0.0031554]
[1766788667278,1.36255223,2927.1,2926.4,0.0031554]
[1766788669381,0.17095,2927.1,2926.4,0.0031554]
[1766788669565,1.386899,2927.1,2926.4,0.0031554]
[1766788670778,1.34415535,2927.1,2926.4,0.0031554]
[1766788671379,1.34415535,2927.1,2926.4,8.1781554]
[1766788672677,1.34856132,2927.1,2926.4,8.1781554]
[1766788673079,0.17095,2927.1,2926.4,8.1781554]
[1766788673268,1.34856132,2927.1,2926.4,8.1781554]
[1766788673868,1.36964161,2927.1,2926.4,8.1781554]
[1766788674880,1.35711675,2927.1,2926.4,8.1781554]
[1766788675288,0.17095,2927.1,2926.4,8.1781554]
[1766788676089,1.35711675,2927.1,2926.4,8.1781554]
[1766788676690,0.17095,2927.1,2926.4,8.1781554]
[1766788676989,1.32732691,2927.1,2926.4,8.1781554]
[1766788677294,0.17095,2927.1,2926.4,8.1781554]
[1766788677589,1.35575258,2927.1,2926.4,8.1781554]
[1766788679293,1.33797919,2927.1,2926.4,8.1781554]
[1766788680292,1.33797919,2927.1,2926.4,0.0031554]
[1766788680586,0.90670171,2926.7,2926.0,1.97376126]
[1766788680785,10.47944471,2926.7,2925.5,4.28905933]
[1766788680980,0.00513075,2926.4,2925.6,8.181]
[1766788681183,9.31934607,2926.7,2925.7,9.09280171]
[1766788681388,10.47944935,2926.7,2925.7,8.1861]
[1766788681587,10.49277589,2926.7,2925.7,8.19019538]
[1766788682190,0.00513075,2926.5,2925.7,8.19019538]
[1766788683285,0.00513075,2926.5,2925.8,0.90670171]
[1766788684291,0.00513075,2926.5,2925.7,8.19019538]
[1766788686295,1.04659147,2927.1,2926.2,0.90670171]
[1766788686498,0.17091,2927.8,2926.3,8.194]
[1766788686798,0.17091,2927.8,2926.4,0.90670171]
[1766788687092,0.17091,2927.8,2926.5,4.47021369]
[1766788687093,0.00513075,2927.3,2926.5,4.47021369]
[1766788687396,0.00787014,2927.3,2926.5,4.47021369]
[1766788687994,0.00787014,2927.3,2926.2,0.96958162]
[1766788688200,0.90670171,2927.2,2926.1,8.196]
[1766788688901,2.08191211,2927.2,2926.1,8.196]
[1766788689500,2.06840972,2927.2,2926.1,8.196]
[1766788690401,2.06371263,2927.2,2926.1,8.196]
[1766788690597,2.06371263,2927.2,2925.7,1.88354731]
[1766788690598,2.06371263,2927.2,2925.7,0.9768456]
[1766788690800,0.90670171,2926.9,2925.8,5.683]
[1766788691505,0.90670171,2926.9,2925.7,0.9768456]
[1766788691700,0.90670171,2926.9,2925.9,8.195]
[1766788691909,0.90670171,2926.9,2925.7,0.9768456]
[1766788692108,0.90670171,2926.9,2925.8,8.194]
[1766788692610,0.90670171,2926.9,2925.9,8.194]
[1766788700915,0.90670171,2926.9,2925.9,8.201]
[1766788703013,0.90670171,2926.9,2925.7,0.00919538]
[1766788703316,0.90670171,2926.9,2925.8,8.204]
[1766788703512,0.90670171,2927.0,2925.8,8.204]
[1766788703720,1.194532,2926.9,2925.8,8.204]
[1766788738564,1.194532,2926.9,2925.7,0.00919538]
[1766788738761,1.194532,2926.9,2925.8,8.267]
[1766788738963,1.194532,2926.9,2925.8,12.61123611]
[1766788758483,1.194532,2926.9,2925.8,4.34423611]
[1766788758781,1.194532,2926.9,2925.9,8.337]
[1766788764587,1.194532,2926.9,2925.7,0.00919538]
[1766788764782,1.194532,2926.9,2926.0,8.347]
[1766788765287,1.194532,2926.9,2925.7,0.00919538]
[1766788765487,1.194532,2926.9,2925.8,8.348]
[1766788765688,1.194532,2926.9,2925.8,12.85577346]
[1766788769991,0.90683931,2926.8,2925.8,12.85577346]
[1766788781396,0.90683931,2926.8,2925.8,4.50777346]
[1766788781601,0.90683931,2926.8,2925.9,8.408]
[1766788785502,1.194532,2926.9,2925.9,8.408]
[1766788786004,1.09866333,2926.9,2926.0,4.45129162]
[1766788786303,0.00787014,2927.3,2926.0,4.45129162]
[1766788786503,0.00787014,2927.3,2926.0,5.53789462]
[1766788788404,1.19469237,2927.4,2926.0,5.53789462]
[1766788788709,1.19469237,2927.4,2926.1,0.90683931]
[1766788789209,1.19469237,2927.4,2926.2,4.49290368]
[1766788789408,0.00513075,2927.1,2926.2,4.49290368]
[1766788794399,0.00513075,2927.1,2926.1,4.51125566]
[1766788794606,0.00513075,2927.1,2926.0,1.086603]
[1766788795112,0.00513075,2927.1,2926.1,4.51125566]
[1766788795802,0.00513075,2927.1,2926.2,8.43]
[1766788796111,0.00513075,2927.1,2926.3,4.39814407]
[1766788800710,0.00513075,2927.1,2925.7,4.46928471]
[1766788800711,0.90683931,2927.0,2925.7,4.46928471]
[1766788800915,0.90683931,2926.4,2925.7,5.39053434]
[1766788801114,0.90683931,2926.4,2925.8,8.442]
[1766788801312,0.90683931,2927.0,2925.8,8.442]
[1766788801514,0.90683931,2926.6,2925.8,8.442]
[1766788802610,0.90683931,2926.6,2925.7,1.10147501]
[1766788802807,0.90683931,2926.6,2925.8,8.445]
[1766788805511,0.17096,2927.0,2925.8,8.445]
[1766788805717,0.90683931,2926.8,2925.8,8.445]
[1766788813932,0.90683931,2926.8,2925.7,1.10147501]
[1766788814225,0.90683931,2926.8,2925.9,8.463]
[1766788829951,0.17096,2927.0,2925.9,8.463]
[1766788849573,1.26668698,2927.1,2926.0,4.46688949]
[1766788850472,0.00513075,2927.1,2926.0,4.46688949]
[1766788853074,3.075e-05,2927.1,2926.0,4.46688949]
[1766788870392,0.90677847,2927.0,2926.0,4.46688949]
[1766788870595,3.075e-05,2927.1,2925.9,8.513]
[1766788871786,3.075e-05,2927.1,2926.0,8.514]
[1766788873096,3.075e-05,2927.1,2926.1,4.34591745]
[1766788876089,3.075e-05,2927.1,2926.1,8.63497678]
[1766788885502,3.075e-05,2927.1,2926.2,4.28905933]
[1766788885805,3.075e-05,2927.1,2926.3,4.46658189]
[1766788886006,3.075e-05,2927.1,2926.4,8.563]
[1766788886204,3.075e-05,2927.1,2926.4,9.73162849]
[1766788886398,3.075e-05,2927.1,2926.5,4.46658189]
[1766788887604,3.075e-05,2927.1,2926.6,8.57]
[1766788887908,3.075e-05,2927.1,2926.7,7.9587]
[1766788889309,3.075e-05,2927.1,2926.2,1.13737141]
[1766788889618,3.075e-05,2927.1,2926.3,8.571]
[1766788911638,3.075e-05,2927.1,2926.2,1.13737141]
[1766788911838,3.075e-05,2927.1,2926.3,8.582]
[1766788917147,3.075e-05,2927.1,2926.3,8.583]
[1766788926955,3.075e-05,2927.1,2926.4,4.37132702]
[1766788958683,3.075e-05,2927.1,2926.5,8.73]
[1766788962282,3.075e-05,2927.1,2926.1,1.0723326]
[1766788962489,3.075e-05,2927.1,2926.2,8.739]
[1766788962783,3.075e-05,2927.1,2926.2,13.15941317]
[1766788965183,3.075e-05,2927.1,2926.2,4.42041317]
[1766788965390,3.075e-05,2927.1,2926.3,8.754]
[1766789004329,3.075e-05,2927.1,2926.0,1.03118193]
[1766789004532,3.075e-05,2927.1,2926.1,8.754]
[1766789005122,3.075e-05,2927.1,2926.0,1.02449758]
[1766789005327,3.075e-05,2927.1,2926.2,8.754]
[1766789010240,3.075e-05,2927.1,2925.7,4.29825471]
[1766789010434,3.075e-05,2927.1,2925.9,1.09180511]
[1766789010740,3.075e-05,2927.1,2926.0,8.755]
[1766789011535,3.075e-05,2927.1,2925.8,1.05399251]
[1766789011738,0.17096,2927.0,2925.8,1.06568743]
[1766789011939,11.75610057,2927.0,2925.7,8.76419538]
[1766789013142,0.17096,2926.9,2925.7,8.76419538]
[1766789015944,0.90697121,2926.7,2925.7,8.76419538]
[1766789017845,0.90697121,2925.8,2924.8,1.05716336]
[1766789018041,12.49211178,2927.0,2924.8,1.05716336]
[1766789018234,0.90697121,2925.8,2924.8,1.05486871]
[1766789018737,0.90697121,2925.8,2924.3,10.93290169]
[1766789018738,0.90697121,2925.8,2924.4,0.90697121]
[1766789019046,0.00513075,2925.6,2925.0,0.00513075]
[1766789019738,1.2691043,2926.0,2925.0,0.00513075]
[1766789019941,2.17607551,2926.0,2925.0,0.00513075]
[1766789020147,0.90697121,2926.0,2925.0,0.00513075]
[1766789020638,1.4401043,2926.2,2925.0,0.00513075]
[1766789020839,0.00513075,2925.9,2925.0,0.00513075]
[1766789021746,0.90697121,2925.7,2925.0,0.00513075]
[1766789024042,1.27083401,2925.8,2925.0,0.00513075]
[1766789024943,0.90697121,2925.6,2925.0,0.00513075]
[1766789026345,0.90697121,2925.6,2924.8,0.00365631]
[1766789027447,0.90697121,2925.6,2924.9,0.00513075]
[1766789027645,0.90697121,2925.3,2923.5,0.17116]
[1766789027843,2.22092327,2925.3,2923.7,0.90697121]
[1766789028044,0.90697121,2925.3,2924.1,4.39495355]
[1766789028243,2.22092327,2925.3,2924.1,8.752]
[1766789028842,2.2246287,2925.3,2924.4,0.00513075]
[1766789029848,1.31765749,2925.3,2924.4,0.00513075]
[1766789030054,2.2246287,2925.3,2924.4,0.00513075]
[1766789030256,0.91067664,2925.3,2924.4,0.00513075]
[1766789030445,2.23354543,2925.3,2924.4,0.00513075]
[1766789030647,0.91067664,2925.3,2924.4,0.00513075]
[1766789030948,0.90697121,2925.0,2924.4,0.00513075]
[1766789031153,2.21210843,2925.0,2924.4,0.00513075]
[1766789031546,0.90697121,2925.1,2924.4,0.00513075]
[1766789031753,0.90697121,2924.8,2924.4,0.00513075]
[1766789031947,2.21006133,2924.8,2924.1,0.0035871]
[1766789032140,2.21006133,2924.8,2923.2,1.08300831]
[1766789032141,0.90697121,2924.8,2923.3,3.539]
[1766789032345,2.21000951,2924.8,2923.3,4.62196524]
[1766789032546,2.21000951,2924.8,2923.5,0.90697121]
[1766789032949,0.00513075,2924.4,2923.9,0.00513075]
[1766789033149,0.00513075,2924.4,2923.9,0.0092015]
[1766789041258,2.37526123,2925.1,2923.9,0.0092015]
[1766789041656,0.00370543,2925.3,2924.0,4.46895505]
[1766789041856,0.90697121,2925.6,2924.1,0.90697121]
[1766789042051,0.90697121,2925.6,2924.3,0.90697121]
[1766789042255,1.07800121,2925.9,2924.3,0.90697121]
[1766789042457,11.44970696,2927.0,2924.2,13.0736194]
[1766789042458,0.17098,2926.7,2924.6,0.90697121]
[1766789042762,0.17098,2926.7,2924.7,4.3496194]
[1766789042763,2.18025531,2926.2,2924.7,4.3496194]
[1766789042957,2.18025531,2926.2,2924.9,0.90697121]
[1766789043158,0.91115101,2926.2,2924.9,0.90697121]
[1766789043358,0.00513075,2925.8,2925.0,4.40932885]
[1766789043555,0.0041798,2926.2,2925.0,4.40932885]
[1766789043755,0.0041798,2926.2,2925.1,0.90697121]
[1766789043960,1.3107162,2926.5,2925.1,0.90697121]
[1766789044160,1.3107162,2926.5,2925.2,4.52895534]
[1766789044567,0.00513075,2926.1,2925.6,0.00513075]
[1766789044867,1.3107162,2926.5,2925.6,0.00513075]
[1766789045169,1.31408224,2926.5,2925.6,0.00513075]
[1766789045668,0.00513075,2926.3,2925.6,0.00513075]
[1766789048768,0.00513075,2926.3,2924.5,0.1711]
[1766789048769,0.90697121,2925.7,2924.1,0.90697121]
[1766789049261,0.90697121,2925.7,2924.1,2.06211915]
[1766789049770,0.90697121,2925.7,2924.6,0.00513075]
[1766789049970,0.90697121,2925.4,2924.6,0.00513075]
[1766789050472,2.30940871,2925.7,2924.6,0.00513075]
[1766789056878,0.90697121,2925.4,2924.6,0.00513075]
[1766789057874,2.30940871,2925.7,2924.6,0.00513075]
[1766789058078,1.4024375,2925.7,2924.6,0.00513075]
[1766789058972,0.17102,2925.9,2924.7,0.90697121]
[1766789062877,0.17102,2925.9,2924.6,0.00513075]
[1766789063080,0.17102,2925.9,2924.6,0.91210196]
[1766789071086,0.17102,2925.9,2924.9,0.90697121]
[1766789071985,1.41464784,2926.2,2924.9,0.90697121]
[1766789077884,1.41464784,2926.2,2924.6,0.00513075]
[1766789101720,0.00513075,2926.3,2924.7,5.25916102]
[1766789101920,0.00513075,2926.3,2924.7,10.11948288]
[1766789102114,0.00513075,2926.3,2924.7,10.11941439]
[1766789102722,0.00513075,2926.3,2924.8,8.583]
[1766789103119,0.00513075,2926.3,2924.9,4.54364042]
[1766789104420,0.00513075,2926.3,2924.9,5.64911235]
[1766789104812,0.00513075,2926.3,2925.0,8.587]
[1766789105120,0.00513075,2926.3,2925.1,4.45149145]
[1766789117527,0.00513075,2926.3,2925.1,5.35867482]
[1766789118637,0.00513075,2926.3,2925.1,5.52974482]
[1766789118837,0.00336604,2926.5,2925.1,5.52974482]
[1766789120835,0.0034205,2926.1,2925.1,5.52974482]
[1766789121034,0.00336604,2926.5,2925.1,5.52974482]
[1766789137946,0.00336604,2926.5,2925.6,0.90674544]
[1766789138146,0.00336604,2926.5,2925.7,8.631]
[1766789160062,0.17096,2926.9,2925.7,8.631]
[1766789161160,0.17478412,2926.9,2925.7,8.631]
[1766789164364,0.17478412,2926.9,2925.3,0.96824541]
[1766789164657,0.17478412,2926.9,2925.7,4.50463678]
[1766789165055,0.17478412,2926.9,2925.6,8.639]
[1766789165458,0.17478412,2926.9,2925.6,13.14363678]
[1766789166160,0.90674544,2925.8,2924.5,0.09315582]
[1766789166467,1.11677081,2925.9,2924.7,8.639]
[1766789166664,0.90674544,2926.1,2924.7,8.639]
[1766789166860,0.90674544,2926.1,2924.8,8.638]
[1766789167058,0.90674544,2926.1,2924.6,1.85190306]
[1766789167260,0.90674544,2926.1,2924.7,8.638]
[1766789167464,1.11695369,2926.2,2924.8,8.637]
[1766789167762,0.90674544,2926.2,2924.8,8.637]
[1766789168458,2.02129971,2926.2,2924.8,8.637]
[1766789169167,2.00042304,2926.2,2924.8,8.637]
[1766789170367,2.00015726,2926.2,2924.8,8.637]
[1766789171470,2.17317496,2926.2,2924.8,8.637]
[1766789172371,1.07774544,2926.2,2924.8,8.637]
[1766789172566,2.17317496,2926.2,2924.8,8.637]
[1766789173372,0.90674544,2925.9,2924.8,8.637]
[1766789181975,0.90674544,2925.9,2924.6,0.00513075]
[1766789182180,0.90674544,2925.9,2924.7,8.63]
[1766789188979,0.90674544,2925.9,2924.6,0.00513075]
[1766789189185,0.17101,2926.1,2924.7,8.632]
[1766789193189,0.90674544,2925.9,2924.7,8.632]
[1766789196394,0.90674544,2925.9,2924.6,9.53887619]
[1766789196995,2.0615431,2925.9,2924.6,9.53887619]
[1766789197694,0.90674544,2925.9,2924.6,9.53887619]
[1766789197896,2.0598317,2925.9,2924.6,9.53887619]
[1766789198687,1.15308626,2925.9,2924.6,9.53887619]
[1766789198882,0.90674544,2926.0,2924.6,9.53887619]
[1766789199894,0.17101,2926.1,2924.6,8.63213075]
[1766789200087,1.13505985,2926.0,2924.6,8.63213075]
[1766789200797,1.16919536,2926.0,2924.6,8.63213075]
[1766789201399,1.34020536,2926.0,2924.6,8.63213075]
[1766789201600,0.17101,2926.0,2924.6,8.63213075]
[1766789201999,1.31752645,2926.0,2924.6,8.63213075]
[1766789202394,0.17101,2926.0,2924.6,8.63213075]
[1766789202800,1.31752645,2926.0,2924.6,8.63213075]
[1766789203800,0.17101,2926.0,2924.6,8.63213075]
[1766789204002,1.40558519,2926.0,2924.6,8.63213075]
[1766789205498,1.41491,2926.0,2924.6,8.63213075]
[1766789206904,1.38431224,2926.0,2924.6,8.63213075]
[1766789208702,1.40921599,2926.0,2924.6,8.63213075]
[1766789209407,0.17101,2926.0,2924.6,8.63213075]
[1766789209703,1.40921599,2926.0,2924.6,8.63213075]
[1766789209904,1.38190352,2926.0,2924.6,8.63213075]
[1766789210304,0.17101,2926.0,2924.6,8.63213075]
[1766789211206,1.38190352,2926.0,2924.6,8.63213075]
[1766789212808,0.17101,2926.0,2924.6,8.63213075]
[1766789213009,1.38917676,2926.0,2924.6,8.63213075]
[1766789214503,1.40958665,2926.0,2924.6,8.63213075]
[1766789215912,1.38097381,2926.0,2924.6,8.63213075]
[1766789217003,1.40574146,2926.0,2924.6,8.63213075]
[1766789217310,0.17101,2926.0,2924.6,8.63213075]
[1766789217510,0.17101,2926.0,2924.6,0.00513075]
[1766789217810,1.40574146,2926.0,2924.7,8.547]
[1766789218612,1.40574146,2926.0,2924.6,8.63113075]
[1766789218813,1.41309594,2926.0,2924.6,0.00513075]
[1766789219006,1.41309594,2926.0,2924.7,8.626]
[1766789219209,1.38150861,2926.0,2924.7,8.626]
[1766789221317,1.37588563,2926.0,2924.7,8.626]
[1766789221708,1.37588563,2926.0,2924.6,0.00513075]
[1766789222016,1.37588563,2926.0,2924.6,8.62613075]
[1766789222216,1.37588563,2926.0,2924.6,0.00513075]
[1766789222417,1.37588563,2926.0,2924.6,8.62513075]
[1766789223513,1.39797209,2926.0,2924.6,8.62513075]
[1766789224418,1.39043897,2926.0,2924.6,8.62513075]
[1766789224916,0.17101,2926.0,2924.6,0.00513075]
[1766789225114,1.39043897,2926.0,2924.6,0.00513075]
[1766789225317,1.43540633,2926.0,2924.6,0.00513075]
[1766789227918,1.45836644,2926.0,2924.6,0.00513075]
[1766789228414,0.17101,2926.0,2924.6,0.00513075]
[1766789228615,1.28735644,2926.1,2924.6,0.00513075]
[1766789228915,1.28735644,2926.1,2924.7,0.90740731]
[1766789229114,0.70995644,2926.1,2924.7,5.38517843]
[1766789229322,0.12225644,2926.1,2924.7,5.38517843]
[1766789229621,8.77739001,2926.3,2924.7,5.38517843]
[1766789230219,10.06549857,2926.3,2924.7,5.38517843]
[1766789230621,9.96909857,2926.3,2924.7,5.38517843]
[1766789240920,9.96909857,2926.3,2925.1,0.90740731]
[1766789241119,8.68099001,2926.3,2925.2,8.618]
[1766789241422,8.68099001,2926.3,2925.2,12.99451804]
[1766789242331,8.68099001,2926.3,2925.2,14.0476337]
[1766789242921,8.68099001,2926.3,2925.2,12.99451804]
[1766789243231,8.68099001,2926.3,2925.2,14.0476337]
[1766789243426,8.68099001,2926.3,2925.2,12.99451804]
[1766789244525,8.68099001,2926.3,2925.2,14.03249231]
[1766789244830,8.58459001,2926.3,2925.2,12.99451804]
[1766789245022,8.48569001,2926.3,2925.2,14.03819952]
[1766789245420,8.48569001,2926.3,2925.2,14.02913914]
[1766789246633,8.48569001,2926.3,2925.2,14.04472893]
[1766789247333,8.48569001,2926.3,2925.2,14.11943187]
[1766789247834,8.48569001,2926.3,2925.2,14.14061296]
[1766789248022,0.00382412,2926.9,2925.2,14.14061296]
[1766789248931,0.00382412,2926.9,2925.2,12.99451804]
[1766789249128,0.00382412,2926.9,2925.2,14.12441362]
[1766789250129,0.00382412,2926.9,2925.2,14.29547362]
[1766789250334,0.00382412,2926.9,2925.5,0.90740731]
[1766789250725,0.00382412,2926.9,2925.6,4.35972374]
[1766789250921,0.00382412,2926.9,2925.7,8.638]
[1766789251334,0.00382412,2926.9,2925.8,4.45984611]
[1766789257238,6.589,2927.9,2925.9,0.90740731]
[1766789257434,6.589,2927.9,2926.6,0.00513075]
[1766789257637,6.589,2927.9,2926.6,8.65013075]
[1766789258245,6.59269829,2927.9,2926.6,8.65410762]
[1766789259941,0.90627636,2927.8,2926.6,8.65410762]
[1766789264654,0.90627636,2927.8,2926.6,9.56038398]
[1766789265044,0.00369829,2927.9,2926.6,9.56038398]
[1766789265957,0.00369829,2927.9,2926.7,4.4029133]
[1766789270252,0.00369829,2927.9,2926.9,0.90627636]
[1766789270654,0.00369829,2927.9,2927.0,4.46193783]
[1766789278758,0.00369829,2927.9,2927.0,13.08893783]
[1766789282368,0.00369829,2927.9,2927.0,4.46193783]
[1766789282571,0.00369829,2927.9,2927.1,8.632]
[1766789298583,0.00369829,2927.9,2926.7,1.17132335]
[1766789298785,0.00369829,2927.9,2926.8,8.646]
[1766789298981,0.00369829,2927.9,2926.9,4.40698787]
[1766789299175,0.00369829,2927.9,2926.8,13.05298787]
[1766789299377,0.00369829,2927.9,2926.8,8.646]
[1766789299576,0.00369829,2927.9,2926.9,4.40698787]
[1766789304590,0.00369829,2927.9,2927.0,8.668]
[1766789317298,0.00369829,2927.9,2927.0,9.57427636]
[1766789319898,0.00369829,2927.9,2927.0,8.668]
[1766789321601,0.07820715,2928.4,2927.0,8.668]
[1766789322794,0.08075373,2928.4,2927.0,8.668]
[1766789327205,0.08075373,2928.4,2926.7,1.17132335]
[1766789327407,0.08075373,2928.4,2926.8,7.186]
[1766789327606,0.08075373,2928.4,2926.8,11.60615625]
[1766789329401,0.08075373,2928.4,2926.9,8.697]
[1766789330211,0.00254658,2928.4,2926.9,8.697]
[1766789334713,0.00254658,2928.4,2927.0,4.52813236]
[1766789348019,4.658e-05,2928.4,2927.0,4.52813236]
[1766789348212,0.17083,2929.1,2927.2,0.90588624]
[1766789348416,0.97736054,2929.0,2927.2,0.90588624]
[1766789348612,0.17083,2929.1,2927.3,4.43980155]
[1766789348818,0.97735921,2929.0,2927.3,4.43980155]
[1766789349013,0.17083,2929.1,2927.3,4.43980155]
[1766789349217,0.97735931,2929.0,2927.3,4.43980155]
[1766789349426,0.17506846,2929.1,2927.3,4.43980155]
[1766789349729,0.97724,2929.0,2927.3,4.43980155]
[1766789349921,0.17506846,2929.1,2927.3,4.43980155]
[1766789350129,0.97724,2929.0,2927.3,4.43980155]
[1766789350318,0.17506846,2929.1,2927.3,4.43980155]
[1766789350520,0.97714889,2929.0,2927.3,4.43980155]
[1766789350720,0.17506846,2929.1,2927.3,4.43980155]
[1766789350921,0.97714889,2929.0,2927.3,4.43980155]
[1766789351130,0.17506846,2929.1,2927.3,4.43980155]
[1766789351325,0.97714889,2929.0,2927.3,4.43980155]
[1766789351626,0.17506846,2929.1,2927.3,4.43980155]
[1766789351930,0.97708164,2929.0,2927.3,4.43980155]
[1766789352130,0.17506846,2929.1,2927.3,4.43980155]
[1766789358534,0.17506846,2929.1,2927.4,8.681]
[1766789358936,0.17506846,2929.1,2927.5,4.34265713]
[1766789366146,0.17506846,2929.1,2927.6,8.682]
[1766789366547,0.17506846,2929.1,2927.7,4.48773433]
[1766789366747,0.17506846,2929.1,2928.1,0.00513075]
[1766789379365,0.00423846,2929.1,2928.2,4.42388685]
[1766789383770,3.846e-05,2929.1,2928.2,4.42388685]
[1766789383968,3.846e-05,2929.1,2928.2,5.3290272]
[1766789391274,0.1708,2929.7,2928.5,0.90514035]
[1766789391470,0.1708,2929.7,2928.6,8.668]
[1766789391676,0.1708,2929.7,2928.6,13.07312534]
[1766789392175,0.17370842,2929.7,2928.6,13.07312534]
[1766789393379,0.00290842,2929.7,2928.8,0.90514035]
[1766789393578,0.00290842,2929.7,2928.8,0.90943521]
[1766789393780,0.00290842,2929.7,2928.9,4.42108025]
[1766789402270,0.17076,2930.3,2928.9,4.42108025]
[1766789402467,0.90514035,2930.8,2929.2,0.90514035]
[1766789402673,0.90514035,2930.8,2929.7,0.0051219]
[1766789403279,0.90758838,2930.8,2929.7,0.0051219]
[1766789413683,0.00244803,2930.8,2929.7,0.0051219]
[1766789413896,0.90514035,2930.7,2929.7,0.0051219]
[1766789414184,0.00244803,2930.8,2929.7,0.0051219]
[1766789414388,0.90758838,2930.8,2929.7,0.0051219]
[1766789420884,0.90514035,2930.5,2929.7,0.0051219]
[1766789424096,0.90514035,2930.5,2929.3,4.39052263]
[1766789424796,0.90758838,2930.8,2929.3,0.90514035]
[1766789425100,0.90758838,2930.8,2929.4,4.49295979]
[1766789425398,0.0050924,2930.3,2929.8,0.0051219]
[1766789433190,0.90514035,2930.7,2929.8,0.0051219]
[1766789438196,0.00244803,2930.8,2929.8,0.0051219]
[1766789438396,0.90514035,2930.7,2929.8,0.0051219]
[1766789440900,0.00244803,2930.8,2929.8,0.0051219]
[1766789441199,0.90758838,2930.8,2929.8,0.0051219]
[1766789441898,0.00244803,2930.8,2929.8,0.0051219]
[1766789486947,0.00244803,2930.8,2929.9,4.49504803]
[1766789496355,0.18069,2931.5,2929.9,4.49504803]
[1766789497559,0.18490546,2931.5,2929.9,4.49504803]
[1766789503952,0.90407153,2931.4,2929.9,5.39911956]
[1766789506060,0.90407153,2931.1,2929.9,4.49504803]
[1766789509861,0.18490546,2931.5,2929.9,4.49504803]
[1766789509862,0.18490546,2931.5,2930.1,0.90407153]
[1766789510564,1.08897699,2931.5,2930.1,0.90407153]
[1766789511163,0.18490546,2931.5,2930.1,0.90407153]
[1766789511364,0.18490546,2931.5,2930.1,2.31777201]
[1766789512269,0.01421546,2931.5,2930.1,2.31777201]
[1766789514467,0.91828699,2931.5,2930.1,2.31777201]
[1766789521878,0.91828699,2931.5,2930.1,1.41370048]
[1766789522082,0.91828699,2931.5,2930.2,4.40510923]
[1766789531488,0.90407153,2931.1,2929.8,0.0051219]
[1766789539897,0.90407153,2930.8,2929.8,0.0051219]
[1766789541693,0.17071,2931.3,2929.9,4.41528924]
[1766789542793,0.17071,2931.3,2929.9,5.31936077]
[1766789552103,0.17071,2931.3,2929.9,4.41528924]
[1766789561324,1.07478153,2931.3,2929.9,4.41528924]
[1766789563927,0.17071,2931.3,2929.9,4.41528924]
[1766789585045,0.17071,2931.3,2930.0,8.627]
[1766789594050,0.17071,2931.3,2929.8,0.0051219]
[1766789594251,0.97161162,2931.2,2929.8,0.0051219]
[1766789594457,0.97164319,2931.1,2929.8,0.0051219]
[1766789594657,0.17071,2931.3,2929.8,0.0051219]
[1766789594857,0.97167308,2931.2,2929.8,0.0051219]
[1766789595058,0.90409449,2931.0,2929.8,0.0051219]
[1766789614970,0.90409449,2930.6,2929.5,1.40605747]
[1766789615170,0.90409449,2930.6,2929.2,0.12130028]
[1766789615670,0.90409449,2930.6,2929.3,4.41269157]
[1766789616066,0.0051219,2930.2,2929.7,0.0051219]
[1766789618278,0.0051219,2930.2,2929.7,2.19e-05]
[1766789618684,0.0051219,2930.2,2929.3,4.41269157]
[1766789619679,0.0051219,2930.2,2929.5,0.0051219]
[1766789619883,0.0051219,2930.2,2928.6,9.99544951]
[1766789620182,0.0051219,2930.2,2929.0,4.50425195]
[1766789620581,0.0051219,2930.2,2928.6,9.99544951]
[1766789620782,0.0051219,2930.2,2929.1,4.50425195]